Workbook

Sheet E-mail
C1: Hi, my name is Hyeontae Kim from Korea Eximbank(KEXIM).
C3: I was the one who asked you many times about the DEBT IRR issues during the class.
C5: Also, if you could, could you share your thought on DEBT IRRs?
C7: I am not quite sure which of the two is more logical way of caculating margin IRRs for floating-rate debt.
C8: ((1) All-in cashflow IRR - Libor cashflow IRR vs (2) Net cashflow of the credit spread + premiumn IRR).
C9: I believe the latter is more sensible because the latter does not fluctuate even if an underlying assumption for Libor curve changes.
C11: Objectives
C12: How Does ECA Work
C13: Modelling Practices
C14: Computation of Debt IRR
C15: Measurement of Premium versus Credit Spread

Sheet Summary
B3: Approach 1: | D3: Debt IRR
D4: Less: LIBOR IRR
D5: Effective Periodic Cost of ECA Debt | I5: ='Financial Model'!O13 -> 0.02136380076
B7: Approach 2: | D7: Credit Spread + Premium IRR | I7: ='Financial Model'!O14 -> 0.02012155483
B9: Apporach 3: | D9: Levelised Cost of Credit Spread %
B11: Approach 4: | D11: Goal Seek on Equity IRR to Find Equivalent Credit Spread | I11: ='Financial Model'!O10 -> 0.02162567

Sheet Financial Model
E1: Equity IRR | F1: =H106 -> 0.08173723518 | G1: Debt IRR | H1: =H116 -> 0.04187645455 | I1: Debt to Capital | K1: =SUM(I52:I53) -> 0.7 | L1: Regular CS | M1: =O10 -> 0.02162567
F3: Driver 1 | G3: Driver 2 | H3: Sum | I3: Start
B5: Time Period | H5: =E116 -> Regular | J5: 0 | K5: 1 | L5: 2 | M5: 3 | N5: 4 | O5: 5 | P5: 6 | Q5: 7 | R5: 8 | S5: 9 | T5: 10 | U5: 11 | V5: 12 | W5: 13 | X5: 14 | Y5: 15 | Z5: 16 | AA5: 17 | AB5: 18 | AC5: 19 | AD5: 20 | AE5: 21 | AF5: 22 | AG5: 23 | AH5: 24 | AI5: 25 | AJ5: 26 | AK5: 27 | AL5: 28 | AM5: 29 | AN5: 30
B6: Operating Period | F6: =MAX(5:5) -> 30 | J6: =AND(J5>0,J5<=$F$6)*1 -> 0 | K6: 1 | L6: 1 | M6: 1 | N6: 1 | O6: 1 | P6: 1 | Q6: 1 | R6: 1 | S6: 1 | T6: 1 | U6: 1 | V6: 1 | W6: 1 | X6: 1 | Y6: 1 | Z6: 1 | AA6: 1 | AB6: 1 | AC6: 1 | AD6: 1 | AE6: 1 | AF6: 1 | AG6: 1 | AH6: 1 | AI6: 1 | AJ6: 1 | AK6: 1 | AL6: 1 | AM6: 1 | AN6: 1
B7: Construction Period | F7: 0 | J7: =(J5=0)*1 -> 1 | K7: 0 | L7: 0 | M7: 0 | N7: 0 | O7: 0 | P7: 0 | Q7: 0 | R7: 0 | S7: 0 | T7: 0 | U7: 0 | V7: 0 | W7: 0 | X7: 0 | Y7: 0 | Z7: 0 | AA7: 0 | AB7: 0 | AC7: 0 | AD7: 0 | AE7: 0 | AF7: 0 | AG7: 0 | AH7: 0 | AI7: 0 | AJ7: 0 | AK7: 0 | AL7: 0 | AM7: 0 | AN7: 0
A9: Inputs | J9: ECA Premium and Credit Spread | N9: =F15 -> 0.1 | O9: =F17 -> 0.01
B10: Project Cost | E10: € 000's | F10: 1000 | J10: Regular Debt Credit Spread | O10: =cs -> 0.02162567
B11: EBITDA | E11: € 000's | F11: 60
B12: EBITDA Growth | E12: % | F12: 0.02 | O12: ECA | P12: Regular Debt
J13: Credit Spread IRR 1 - Debt IRR less LIBOR IRR | O13: =J155 -> 0.02136380076 | P13: =K155 -> 0.02125908886
B14: ECA Debt | J14: Credit Spread IRR 2 - Debt Balance x CS + Fees | O14: =J156 -> 0.02012155483 | P14: 0.02162566999
C15: Up-Front Premium | E15: % | F15: 0.1 | J15: PV of Credit Spread | O15: =J157 -> 152.7589131 | P15: 152.5479484
C16: Qualifing Assets | E16: % | F16: 0.7 | J16: Debt IRR | O16: =J158 -> 0.04189548116 | P16: 0.04187645455
C17: Credit Spread | E17: % | F17: 0.01 | J17: Equity IRR | O17: =J159 -> 0.08173651582 | P17: 0.08173723518
C18: Apply ECA Debt | E18: Switch | F18: FALSE
C19: Tenure of ECA Debt | E19: Years | F19: 20 | K19: EQ IRR | L19: Debt IRR
J20: ECA | K20: =O17 -> 0.08173651582 | L20: =O16 -> 0.04189548116
B21: Regular Old Debt | J21: =H5 -> Regular | K21: =F1 -> 0.08173723518 | L21: =H1 -> 0.04187645455
C22: Financing Percent | E22: % | F22: 0.7 | J22: Difference | K22: =K20-K21 -> -7.193607725e-07 | L22: =L20-L21 -> 1.902661534e-05
C23: Credit Spread | E23: % | F23: 0.02162567 | G23: cs
C24: Tenure of Regular Debt | E24: Years | F24: =F19 -> 20
B26: LIBOR Year | F26: 0 | G26: 1 | H26: 5 | I26: 10 | J26: 15
C27: Varying LIBOR Rate | F27: 0.015 | G27: 0.0165 | H27: 0.02 | I27: 0.025 | J27: 0.028
C28: Flat LIBOR Rate | F28: 0.016 | G28: 0.016 | H28: 0.016 | I28: 0.016 | J28: 0.016
B30: LIBOR Rate | E30: 1 | F30: =INDEX(F27:F28,$E$30) -> 0.015 | G30: =INDEX(G27:G28,$E$30) -> 0.0165 | H30: =INDEX(H27:H28,$E$30) -> 0.02 | I30: =INDEX(I27:I28,$E$30) -> 0.025 | J30: =INDEX(J27:J28,$E$30) -> 0.028
A33: Operations
B34: EBITDA | F34: =F11 -> 60 | G34: =F12 -> 0.02 | J34: =$F$34*J6 -> 0 | K34: 60 | L34: =K34*L6*(1+$G$34) -> 61.2 | M34: =L34*M6*(1+$G$34) -> 62.424 | N34: 63.67248 | O34: 64.9459296 | P34: 66.24484819 | Q34: 67.56974516 | R34: 68.92114006 | S34: 70.29956286 | T34: 71.70555412 | U34: 73.1396652 | V34: 74.6024585 | W34: 76.09450767 | X34: 77.61639783 | Y34: 79.16872578 | Z34: 80.7521003 | AA34: 82.36714231 | AB34: 84.01448515 | AC34: 85.69477485 | AD34: 87.40867035 | AE34: 89.15684376 | AF34: 90.93998063 | AG34: 92.75878025 | AH34: 94.61395585 | AI34: 96.50623497 | AJ34: 98.43635967 | AK34: 100.4050869 | AL34: 102.4131886 | AM34: 104.4614524 | AN34: 106.5506814
B35: Cap Exp | F35: =F10 -> 1000 | J35: =$F$35*J7 -> 1000 | K35: 0 | L35: 0 | M35: 0 | N35: 0 | O35: 0 | P35: 0 | Q35: 0 | R35: 0 | S35: 0 | T35: 0 | U35: 0 | V35: 0 | W35: 0 | X35: 0 | Y35: 0 | Z35: 0 | AA35: 0 | AB35: 0 | AC35: 0 | AD35: 0 | AE35: 0 | AF35: 0 | AG35: 0 | AH35: 0 | AI35: 0 | AJ35: 0 | AK35: 0 | AL35: 0 | AM35: 0 | AN35: 0
B36: Project Cash Flow | J36: =J34-J35 -> -1000 | K36: 60 | L36: 61.2 | M36: 62.424 | N36: 63.67248 | O36: 64.9459296 | P36: 66.24484819 | Q36: 67.56974516 | R36: 68.92114006 | S36: 70.29956286 | T36: 71.70555412 | U36: 73.1396652 | V36: 74.6024585 | W36: 76.09450767 | X36: 77.61639783 | Y36: 79.16872578 | Z36: 80.7521003 | AA36: 82.36714231 | AB36: 84.01448515 | AC36: 85.69477485 | AD36: 87.40867035 | AE36: 89.15684376 | AF36: 90.93998063 | AG36: 92.75878025 | AH36: 94.61395585 | AI36: 96.50623497 | AJ36: 98.43635967 | AK36: 100.4050869 | AL36: 102.4131886 | AM36: 104.4614524 | AN36: 106.5506814
B37: Project IRR | H37: =IRR(36:36) -> 0.06223721794
A39: Construction Financing
B40: ECA Sizing
C41: Capital Expenditures | J41: =J35 -> 1000 | K41: 0 | L41: 0 | M41: 0 | N41: 0 | O41: 0 | P41: 0 | Q41: 0 | R41: 0 | S41: 0 | T41: 0 | U41: 0 | V41: 0 | W41: 0 | X41: 0 | Y41: 0 | Z41: 0 | AA41: 0 | AB41: 0 | AC41: 0 | AD41: 0 | AE41: 0 | AF41: 0 | AG41: 0 | AH41: 0 | AI41: 0 | AJ41: 0 | AK41: 0 | AL41: 0 | AM41: 0 | AN41: 0
C42: Qualifying Assets | F42: =F16 -> 0.7 | J42: =J41*$F$42 -> 700 | K42: 0 | L42: 0 | M42: 0 | N42: 0 | O42: 0 | P42: 0 | Q42: 0 | R42: 0 | S42: 0 | T42: 0 | U42: 0 | V42: 0 | W42: 0 | X42: 0 | Y42: 0 | Z42: 0 | AA42: 0 | AB42: 0 | AC42: 0 | AD42: 0 | AE42: 0 | AF42: 0 | AG42: 0 | AH42: 0 | AI42: 0 | AJ42: 0 | AK42: 0 | AL42: 0 | AM42: 0 | AN42: 0
C43: Premium | F43: 0.1 | G43: =1/(1-F43)-1 -> 0.1111111111 | H43: =F18 -> FALSE | J43: =J42*$G$43*H43 -> 0
C44: Total ECA Debt | J44: =J42+J43 -> 700
B46: Uses of Funds
C47: Capital Expenditures | J47: =J41 -> 1000
C48: ECA Risk Premium | J48: =J43 -> 0
D49: Total Sources | J49: =SUM(J47:J48) -> 1000
B51: Sources of Funds | I51: Result
C52: ECA Debt | F52: =F18 -> FALSE | I52: =J52/J55 -> 0 | J52: =J44*F52 -> 0
C53: Conventional Debt | F53: =NOT(F52) -> TRUE | G53: =F22 -> 0.7 | I53: =J53/J55 -> 0.7 | J53: =J49*G53*F53 -> 700
C54: Equity | I54: =J54/J55 -> 0.3 | J54: =J49-J52-J53 -> 300
D55: Total | J55: =SUM(J52:J54) -> 1000
A57: ECA Debt
C58: Interest Rate
D59: LIBOR | J59: =LOOKUP(J5,26:26,30:30) -> 0.015 | K59: 0.0165 | L59: 0.0165 | M59: 0.0165 | N59: 0.0165 | O59: 0.02 | P59: 0.02 | Q59: 0.02 | R59: 0.02 | S59: 0.02 | T59: 0.025 | U59: 0.025 | V59: 0.025 | W59: 0.025 | X59: 0.025 | Y59: 0.028 | Z59: 0.028 | AA59: 0.028 | AB59: 0.028 | AC59: 0.028 | AD59: 0.028 | AE59: 0.028 | AF59: 0.028 | AG59: 0.028 | AH59: 0.028 | AI59: 0.028 | AJ59: 0.028 | AK59: 0.028 | AL59: 0.028 | AM59: 0.028 | AN59: 0.028
D60: Credit Spread | F60: =F17 -> 0.01 | J60: =$F$60 -> 0.01 | K60: 0.01 | L60: 0.01 | M60: 0.01 | N60: 0.01 | O60: 0.01 | P60: 0.01 | Q60: 0.01 | R60: 0.01 | S60: 0.01 | T60: 0.01 | U60: 0.01 | V60: 0.01 | W60: 0.01 | X60: 0.01 | Y60: 0.01 | Z60: 0.01 | AA60: 0.01 | AB60: 0.01 | AC60: 0.01 | AD60: 0.01 | AE60: 0.01 | AF60: 0.01 | AG60: 0.01 | AH60: 0.01 | AI60: 0.01 | AJ60: 0.01 | AK60: 0.01 | AL60: 0.01 | AM60: 0.01 | AN60: 0.01
D61: Total | J61: =SUM(J59:J60) -> 0.025 | K61: 0.0265 | L61: 0.0265 | M61: 0.0265 | N61: 0.0265 | O61: 0.03 | P61: 0.03 | Q61: 0.03 | R61: 0.03 | S61: 0.03 | T61: 0.035 | U61: 0.035 | V61: 0.035 | W61: 0.035 | X61: 0.035 | Y61: 0.038 | Z61: 0.038 | AA61: 0.038 | AB61: 0.038 | AC61: 0.038 | AD61: 0.038 | AE61: 0.038 | AF61: 0.038 | AG61: 0.038 | AH61: 0.038 | AI61: 0.038 | AJ61: 0.038 | AK61: 0.038 | AL61: 0.038 | AM61: 0.038 | AN61: 0.038
C63: Repayment
D64: Repayment Flag | J64: =AND(J6,J5<=$F$65)*1 -> 0 | K64: 1 | L64: 1 | M64: 1 | N64: 1 | O64: 1 | P64: 1 | Q64: 1 | R64: 1 | S64: 1 | T64: 1 | U64: 1 | V64: 1 | W64: 1 | X64: 1 | Y64: 1 | Z64: 1 | AA64: 1 | AB64: 1 | AC64: 1 | AD64: 1 | AE64: 0 | AF64: 0 | AG64: 0 | AH64: 0 | AI64: 0 | AJ64: 0 | AK64: 0 | AL64: 0 | AM64: 0 | AN64: 0
D65: Repayment Percent from Function | F65: =F19 -> 20 | H65: =SUM(J65:AN65) -> 1 | J65: =repayment_varying_rate(F65,61:61,64:64) -> 0 | K65: 0.03855955523 | L65: 0.03958138344 | M65: 0.0406302901 | N65: 0.04170699279 | O65: 0.0416493884 | P65: 0.04289887006 | Q65: 0.04418583616 | R65: 0.04551141124 | S65: 0.04687675358 | T65: 0.04705523506 | U65: 0.04870216829 | V65: 0.05040674418 | W65: 0.05217098022 | X65: 0.05399696453 | Y65: 0.05546715117 | Z65: 0.05757490291 | AA65: 0.05976274922 | AB65: 0.06203373369 | AC65: 0.06439101557 | AD65: 0.06683787416 | AE65: 0 | AF65: 0 | AG65: 0 | AH65: 0 | AI65: 0 | AJ65: 0 | AK65: 0 | AL65: 0 | AM65: 0 | AN65: 0
D67: Opening Balance | J67: =I70 -> 0 | K67: =J70 -> 0 | L67: 0 | M67: 0 | N67: 0 | O67: 0 | P67: 0 | Q67: 0 | R67: 0 | S67: 0 | T67: 0 | U67: 0 | V67: 0 | W67: 0 | X67: 0 | Y67: 0 | Z67: 0 | AA67: 0 | AB67: 0 | AC67: 0 | AD67: 0 | AE67: 0 | AF67: 0 | AG67: 0 | AH67: 0 | AI67: 0 | AJ67: 0 | AK67: 0 | AL67: 0 | AM67: 0 | AN67: 0
D68: Add: Draws | H68: =SUM(J68:AN68) -> 0 | J68: =J52 -> 0 | K68: 0 | L68: 0 | M68: 0 | N68: 0 | O68: 0 | P68: 0 | Q68: 0 | R68: 0 | S68: 0 | T68: 0 | U68: 0 | V68: 0 | W68: 0 | X68: 0 | Y68: 0 | Z68: 0 | AA68: 0 | AB68: 0 | AC68: 0 | AD68: 0 | AE68: 0 | AF68: 0 | AG68: 0 | AH68: 0 | AI68: 0 | AJ68: 0 | AK68: 0 | AL68: 0 | AM68: 0 | AN68: 0
D69: Less: Repayments | F69: =H68 -> 0 | H69: =SUM(J69:AN69) -> 0 | J69: =J65*$F$69 -> 0 | K69: =K65*$F$69 -> 0 | L69: 0 | M69: 0 | N69: 0 | O69: 0 | P69: 0 | Q69: 0 | R69: 0 | S69: 0 | T69: 0 | U69: 0 | V69: 0 | W69: 0 | X69: 0 | Y69: 0 | Z69: 0 | AA69: 0 | AB69: 0 | AC69: 0 | AD69: 0 | AE69: 0 | AF69: 0 | AG69: 0 | AH69: 0 | AI69: 0 | AJ69: 0 | AK69: 0 | AL69: 0 | AM69: 0 | AN69: 0
D70: Closing Balance | J70: =J67+J68-J69 -> 0 | K70: =K67+K68-K69 -> 0 | L70: 0 | M70: 0 | N70: 0 | O70: 0 | P70: 0 | Q70: 0 | R70: 0 | S70: 0 | T70: 0 | U70: 0 | V70: 0 | W70: 0 | X70: 0 | Y70: 0 | Z70: 0 | AA70: 0 | AB70: 0 | AC70: 0 | AD70: 0 | AE70: 0 | AF70: 0 | AG70: 0 | AH70: 0 | AI70: 0 | AJ70: 0 | AK70: 0 | AL70: 0 | AM70: 0 | AN70: 0
C72: Interest
D73: Total Interest | J73: =J67*J61 -> 0 | K73: 0 | L73: 0 | M73: 0 | N73: 0 | O73: 0 | P73: 0 | Q73: 0 | R73: 0 | S73: 0 | T73: 0 | U73: 0 | V73: 0 | W73: 0 | X73: 0 | Y73: 0 | Z73: 0 | AA73: 0 | AB73: 0 | AC73: 0 | AD73: 0 | AE73: 0 | AF73: 0 | AG73: 0 | AH73: 0 | AI73: 0 | AJ73: 0 | AK73: 0 | AL73: 0 | AM73: 0 | AN73: 0
D74: LIBOR Interest | J74: =J67*J59 -> 0 | K74: 0 | L74: 0 | M74: 0 | N74: 0 | O74: 0 | P74: 0 | Q74: 0 | R74: 0 | S74: 0 | T74: 0 | U74: 0 | V74: 0 | W74: 0 | X74: 0 | Y74: 0 | Z74: 0 | AA74: 0 | AB74: 0 | AC74: 0 | AD74: 0 | AE74: 0 | AF74: 0 | AG74: 0 | AH74: 0 | AI74: 0 | AJ74: 0 | AK74: 0 | AL74: 0 | AM74: 0 | AN74: 0
D75: Credit Spread Interest | J75: =J60*J67 -> 0 | K75: 0 | L75: 0 | M75: 0 | N75: 0 | O75: 0 | P75: 0 | Q75: 0 | R75: 0 | S75: 0 | T75: 0 | U75: 0 | V75: 0 | W75: 0 | X75: 0 | Y75: 0 | Z75: 0 | AA75: 0 | AB75: 0 | AC75: 0 | AD75: 0 | AE75: 0 | AF75: 0 | AG75: 0 | AH75: 0 | AI75: 0 | AJ75: 0 | AK75: 0 | AL75: 0 | AM75: 0 | AN75: 0
A77: Regular Old Debt without Fee
C78: Interest Rate
D79: LIBOR | J79: =LOOKUP(J5,26:26,30:30) -> 0.015 | K79: 0.0165 | L79: 0.0165 | M79: 0.0165 | N79: 0.0165 | O79: 0.02 | P79: 0.02 | Q79: 0.02 | R79: 0.02 | S79: 0.02 | T79: 0.025 | U79: 0.025 | V79: 0.025 | W79: 0.025 | X79: 0.025 | Y79: 0.028 | Z79: 0.028 | AA79: 0.028 | AB79: 0.028 | AC79: 0.028 | AD79: 0.028 | AE79: 0.028 | AF79: 0.028 | AG79: 0.028 | AH79: 0.028 | AI79: 0.028 | AJ79: 0.028 | AK79: 0.028 | AL79: 0.028 | AM79: 0.028 | AN79: 0.028
D80: Credit Spread | F80: =F23 -> 0.02162567 | J80: =$F$80 -> 0.02162567 | K80: =$F$80 -> 0.02162567 | L80: 0.02162567 | M80: 0.02162567 | N80: 0.02162567 | O80: 0.02162567 | P80: 0.02162567 | Q80: 0.02162567 | R80: 0.02162567 | S80: 0.02162567 | T80: 0.02162567 | U80: 0.02162567 | V80: 0.02162567 | W80: 0.02162567 | X80: 0.02162567 | Y80: 0.02162567 | Z80: 0.02162567 | AA80: 0.02162567 | AB80: 0.02162567 | AC80: 0.02162567 | AD80: 0.02162567 | AE80: 0.02162567 | AF80: 0.02162567 | AG80: 0.02162567 | AH80: 0.02162567 | AI80: 0.02162567 | AJ80: 0.02162567 | AK80: 0.02162567 | AL80: 0.02162567 | AM80: 0.02162567 | AN80: 0.02162567
D81: Total | J81: =SUM(J79:J80) -> 0.03662567 | K81: =SUM(K79:K80) -> 0.03812567 | L81: 0.03812567 | M81: 0.03812567 | N81: 0.03812567 | O81: 0.04162567 | P81: 0.04162567 | Q81: 0.04162567 | R81: 0.04162567 | S81: 0.04162567 | T81: 0.04662567 | U81: 0.04662567 | V81: 0.04662567 | W81: 0.04662567 | X81: 0.04662567 | Y81: 0.04962567 | Z81: 0.04962567 | AA81: 0.04962567 | AB81: 0.04962567 | AC81: 0.04962567 | AD81: 0.04962567 | AE81: 0.04962567 | AF81: 0.04962567 | AG81: 0.04962567 | AH81: 0.04962567 | AI81: 0.04962567 | AJ81: 0.04962567 | AK81: 0.04962567 | AL81: 0.04962567 | AM81: 0.04962567 | AN81: 0.04962567
C83: Repayment Period | J83: =AND(J6,J5<=$F$84)*1 -> 0 | K83: 1 | L83: 1 | M83: 1 | N83: 1 | O83: 1 | P83: 1 | Q83: 1 | R83: 1 | S83: 1 | T83: 1 | U83: 1 | V83: 1 | W83: 1 | X83: 1 | Y83: 1 | Z83: 1 | AA83: 1 | AB83: 1 | AC83: 1 | AD83: 1 | AE83: 1 | AF83: =AND(AF6,AF5<=$F$84)*1 -> 0 | AG83: 0 | AH83: 0 | AI83: 0 | AJ83: 0 | AK83: 0 | AL83: 0 | AM83: 0 | AN83: 0
C84: Repayment Percent | F84: 20 | H84: =SUM(J84:AM84) -> 1 | J84: =repayment_varying_rate(F84,81:81,83:83) -> 0 | K84: 0.03424003437 | L84: 0.03554545862 | M84: 0.03690065304 | N84: 0.03830751516 | O84: 0.0386691127 | P84: 0.04027874042 | Q84: 0.04195536998 | R84: 0.04370179037 | S84: 0.04552090667 | T84: 0.04619867055 | U84: 0.04835271452 | V84: 0.05060719223 | W84: 0.05296678648 | X84: 0.05543639838 | Y84: 0.05758489196 | Z84: 0.06044258081 | AA84: 0.06344208438 | AB84: 0.06659044032 | AC84: 0.06989503554 | AD84: 0.07336362351 | AE84: 0 | AF84: 0 | AG84: 0 | AH84: 0 | AI84: 0 | AJ84: 0 | AK84: 0 | AL84: 0 | AM84: 0 | AN84: 0
C86: Debt Balance
D87: Opening Balance | J87: =I90 -> 0 | K87: =J90 -> 700 | L87: 676.0319759 | M87: 651.1501549 | N87: 625.3196978 | O87: 598.5044372 | P87: 571.4360583 | Q87: 543.24094 | R87: 513.872181 | S87: 483.2809277 | T87: 451.4162931 | U87: 419.0772237 | V87: 385.2303235 | W87: 349.805289 | X87: 312.7285384 | Y87: 273.9230596 | Z87: 233.6136352 | AA87: 191.3038286 | AB87: 146.8943696 | AC87: 100.2810613 | AD87: 51.35453645 | AE87: 0 | AF87: 0 | AG87: 0 | AH87: 0 | AI87: 0 | AJ87: 0 | AK87: 0 | AL87: 0 | AM87: 0 | AN87: 0
D88: Add: Draws | F88: =J53 -> 700 | J88: =J53 -> 700 | K88: 0 | L88: 0 | M88: 0 | N88: 0 | O88: 0 | P88: 0 | Q88: 0 | R88: 0 | S88: 0 | T88: 0 | U88: 0 | V88: 0 | W88: 0 | X88: 0 | Y88: 0 | Z88: 0 | AA88: 0 | AB88: 0 | AC88: 0 | AD88: 0 | AE88: 0 | AF88: 0 | AG88: 0 | AH88: 0 | AI88: 0 | AJ88: 0 | AK88: 0 | AL88: 0 | AM88: 0 | AN88: 0
D89: Less: Repayments | F89: =J53 -> 700 | J89: =$F$89*J84 -> 0 | K89: =$F$89*K84 -> 23.96802406 | L89: 24.88182103 | M89: 25.83045713 | N89: 26.81526061 | O89: 27.06837889 | P89: 28.1951183 | Q89: 29.36875899 | R89: 30.59125326 | S89: 31.86463467 | T89: 32.33906939 | U89: 33.84690016 | V89: 35.42503456 | W89: 37.07675053 | X89: 38.80547887 | Y89: 40.30942437 | Z89: 42.30980657 | AA89: 44.40945906 | AB89: 46.61330822 | AC89: 48.92652488 | AD89: 51.35453645 | AE89: 0 | AF89: 0 | AG89: 0 | AH89: 0 | AI89: 0 | AJ89: 0 | AK89: 0 | AL89: 0 | AM89: 0 | AN89: 0
D90: Closing Balance | J90: =J87+J88-J89 -> 700 | K90: =K87+K88-K89 -> 676.0319759 | L90: 651.1501549 | M90: 625.3196978 | N90: 598.5044372 | O90: 571.4360583 | P90: 543.24094 | Q90: 513.872181 | R90: 483.2809277 | S90: 451.4162931 | T90: 419.0772237 | U90: 385.2303235 | V90: 349.805289 | W90: 312.7285384 | X90: 273.9230596 | Y90: 233.6136352 | Z90: 191.3038286 | AA90: 146.8943696 | AB90: 100.2810613 | AC90: 51.35453645 | AD90: 0 | AE90: 0 | AF90: 0 | AG90: 0 | AH90: 0 | AI90: 0 | AJ90: 0 | AK90: 0 | AL90: 0 | AM90: 0 | AN90: 0
C92: Interest
D93: Total Interest | J93: =J87*J81 -> 0 | K93: =K87*K81 -> 26.687969 | L93: 25.77417203 | M93: 24.82553593 | N93: 23.84073244 | O93: 24.9131482 | P93: 23.78640879 | Q93: 22.6127681 | R93: 21.39027383 | S93: 20.11689242 | T93: 21.04758711 | U93: 19.53975634 | V93: 17.96162194 | W93: 16.30990597 | X93: 14.58117763 | Y93: 13.59361536 | Z93: 11.59323317 | AA93: 9.493580669 | AB93: 7.289731509 | AC93: 4.976514857 | AD93: 2.548503279 | AE93: 0 | AF93: 0 | AG93: 0 | AH93: 0 | AI93: 0 | AJ93: 0 | AK93: 0 | AL93: 0 | AM93: 0 | AN93: 0
D94: LIBOR Interest | J94: =J87*J79 -> 0 | K94: =K87*K79 -> 11.55 | L94: 11.1545276 | M94: 10.74397756 | N94: 10.31777501 | O94: 11.97008874 | P94: 11.42872117 | Q94: 10.8648188 | R94: 10.27744362 | S94: 9.665618555 | T94: 11.28540733 | U94: 10.47693059 | V94: 9.630758088 | W94: 8.745132224 | X94: 7.818213461 | Y94: 7.669845668 | Z94: 6.541181785 | AA94: 5.356507201 | AB94: 4.113042348 | AC94: 2.807869717 | AD94: 1.437927021 | AE94: 0 | AF94: 0 | AG94: 0 | AH94: 0 | AI94: 0 | AJ94: 0 | AK94: 0 | AL94: 0 | AM94: 0 | AN94: 0
D95: Spread Interest | J95: =J87*J80 -> 0 | K95: =K87*K80 -> 15.137969 | L95: 14.61964442 | M95: 14.08155837 | N95: 13.52295743 | O95: 12.94305945 | P95: 12.35768762 | Q95: 11.7479493 | R95: 11.11283021 | S95: 10.45127386 | T95: 9.762179787 | U95: 9.062825744 | V95: 8.330863851 | W95: 7.564773744 | X95: 6.762964172 | Y95: 5.923769692 | Z95: 5.052051382 | AA95: 4.137073468 | AB95: 3.176689161 | AC95: 2.16864514 | AD95: 1.110576258 | AE95: 0 | AF95: 0 | AG95: 0 | AH95: 0 | AI95: 0 | AJ95: 0 | AK95: 0 | AL95: 0 | AM95: 0 | AN95: 0
A97: Cash Flow Waterfall
C98: EBITDA | J98: =J34 -> 0 | K98: 60 | L98: 61.2 | M98: 62.424 | N98: 63.67248 | O98: 64.9459296 | P98: 66.24484819 | Q98: 67.56974516 | R98: 68.92114006 | S98: 70.29956286 | T98: 71.70555412 | U98: 73.1396652 | V98: 74.6024585 | W98: 76.09450767 | X98: 77.61639783 | Y98: 79.16872578 | Z98: 80.7521003 | AA98: 82.36714231 | AB98: 84.01448515 | AC98: 85.69477485 | AD98: 87.40867035 | AE98: 89.15684376 | AF98: 90.93998063 | AG98: 92.75878025 | AH98: 94.61395585 | AI98: 96.50623497 | AJ98: 98.43635967 | AK98: 100.4050869 | AL98: 102.4131886 | AM98: 104.4614524 | AN98: 106.5506814
C99: Less: Interest on ECA | J99: =J73 -> 0 | K99: 0 | L99: 0 | M99: 0 | N99: 0 | O99: 0 | P99: 0 | Q99: 0 | R99: 0 | S99: 0 | T99: 0 | U99: 0 | V99: 0 | W99: 0 | X99: 0 | Y99: 0 | Z99: 0 | AA99: 0 | AB99: 0 | AC99: 0 | AD99: 0 | AE99: 0 | AF99: 0 | AG99: 0 | AH99: 0 | AI99: 0 | AJ99: 0 | AK99: 0 | AL99: 0 | AM99: 0 | AN99: 0
C100: Less: Interest on Regular | J100: =J93 -> 0 | K100: =K93 -> 26.687969 | L100: =L93 -> 25.77417203 | M100: 24.82553593 | N100: 23.84073244 | O100: 24.9131482 | P100: 23.78640879 | Q100: 22.6127681 | R100: 21.39027383 | S100: 20.11689242 | T100: 21.04758711 | U100: 19.53975634 | V100: 17.96162194 | W100: 16.30990597 | X100: 14.58117763 | Y100: 13.59361536 | Z100: 11.59323317 | AA100: 9.493580669 | AB100: 7.289731509 | AC100: 4.976514857 | AD100: 2.548503279 | AE100: 0 | AF100: 0 | AG100: 0 | AH100: 0 | AI100: 0 | AJ100: 0 | AK100: 0 | AL100: 0 | AM100: 0 | AN100: 0
C101: Less: Repayment of ECA | J101: =J69 -> 0 | K101: 0 | L101: 0 | M101: 0 | N101: 0 | O101: 0 | P101: 0 | Q101: 0 | R101: 0 | S101: 0 | T101: 0 | U101: 0 | V101: 0 | W101: 0 | X101: 0 | Y101: 0 | Z101: 0 | AA101: 0 | AB101: 0 | AC101: 0 | AD101: 0 | AE101: 0 | AF101: 0 | AG101: 0 | AH101: 0 | AI101: 0 | AJ101: 0 | AK101: 0 | AL101: 0 | AM101: 0 | AN101: 0
C102: Less: Repayment of Regular | J102: =J89 -> 0 | K102: =K89 -> 23.96802406 | L102: 24.88182103 | M102: 25.83045713 | N102: 26.81526061 | O102: 27.06837889 | P102: 28.1951183 | Q102: 29.36875899 | R102: 30.59125326 | S102: 31.86463467 | T102: 32.33906939 | U102: 33.84690016 | V102: 35.42503456 | W102: 37.07675053 | X102: 38.80547887 | Y102: 40.30942437 | Z102: 42.30980657 | AA102: 44.40945906 | AB102: 46.61330822 | AC102: 48.92652488 | AD102: 51.35453645 | AE102: 0 | AF102: 0 | AG102: 0 | AH102: 0 | AI102: 0 | AJ102: 0 | AK102: 0 | AL102: 0 | AM102: 0 | AN102: 0
D103: Net Cash Flow | J103: =J98-J99-J100-J101-J102 -> 0 | K103: =K98-K99-K100-K101-K102 -> 9.344006942 | L103: 10.54400694 | M103: 11.76800694 | N103: 13.01648694 | O103: 12.96440252 | P103: 14.26332111 | Q103: 15.58821807 | R103: 16.93961297 | S103: 18.31803578 | T103: 18.31889762 | U103: 19.7530087 | V103: 21.215802 | W103: 22.70785117 | X103: 24.22974133 | Y103: 25.26568605 | Z103: 26.84906057 | AA103: 28.46410257 | AB103: 30.11144542 | AC103: 31.79173512 | AD103: 33.50563062 | AE103: 89.15684376 | AF103: 90.93998063 | AG103: 92.75878025 | AH103: 94.61395585 | AI103: 96.50623497 | AJ103: 98.43635967 | AK103: 100.4050869 | AL103: 102.4131886 | AM103: 104.4614524 | AN103: 106.5506814
B105: Equity Cash Flow | J105: =J103-J54 -> -300 | K105: 9.344006942 | L105: 10.54400694 | M105: 11.76800694 | N105: 13.01648694 | O105: 12.96440252 | P105: 14.26332111 | Q105: 15.58821807 | R105: 16.93961297 | S105: 18.31803578 | T105: 18.31889762 | U105: 19.7530087 | V105: 21.215802 | W105: 22.70785117 | X105: 24.22974133 | Y105: 25.26568605 | Z105: 26.84906057 | AA105: 28.46410257 | AB105: 30.11144542 | AC105: 31.79173512 | AD105: 33.50563062 | AE105: 89.15684376 | AF105: 90.93998063 | AG105: 92.75878025 | AH105: 94.61395585 | AI105: 96.50623497 | AJ105: 98.43635967 | AK105: 100.4050869 | AL105: 102.4131886 | AM105: 104.4614524 | AN105: 106.5506814
B106: Equity IRR | H106: =IRR(105:105) -> 0.08173723518
B108: NPV of Equity Cash Flow | F108: =M21 -> 0 | H108: =NPV(F108,105:105) -> 1081.201624 | I108: NPVatECA
B110: Debt Cash Flow
C111: Debt Service | J111: =SUM(J99:J102) -> 0 | K111: 50.65599306 | L111: 50.65599306 | M111: 50.65599306 | N111: 50.65599306 | O111: 51.98152708 | P111: 51.98152708 | Q111: 51.98152708 | R111: 51.98152708 | S111: 51.98152708 | T111: 53.3866565 | U111: 53.3866565 | V111: 53.3866565 | W111: 53.3866565 | X111: 53.3866565 | Y111: 53.90303973 | Z111: 53.90303973 | AA111: 53.90303973 | AB111: 53.90303973 | AC111: 53.90303973 | AD111: 53.90303973 | AE111: 0 | AF111: 0 | AG111: 0 | AH111: 0 | AI111: 0 | AJ111: 0 | AK111: 0 | AL111: 0 | AM111: 0 | AN111: 0
C112: Less: Debt Funded | J112: =J52+J53 -> 700
C113: Add: Premium | J113: =J48 -> 0
C114: Net Debt Cash Flow | J114: =J111-J112+J113 -> -700 | K114: =K111-K112+K113 -> 50.65599306 | L114: 50.65599306 | M114: 50.65599306 | N114: 50.65599306 | O114: 51.98152708 | P114: 51.98152708 | Q114: 51.98152708 | R114: 51.98152708 | S114: 51.98152708 | T114: 53.3866565 | U114: 53.3866565 | V114: 53.3866565 | W114: 53.3866565 | X114: 53.3866565 | Y114: 53.90303973 | Z114: 53.90303973 | AA114: 53.90303973 | AB114: 53.90303973 | AC114: 53.90303973 | AD114: 53.90303973 | AE114: 0 | AF114: 0 | AG114: 0 | AH114: 0 | AI114: 0 | AJ114: 0 | AK114: 0 | AL114: 0 | AM114: 0 | AN114: 0
C116: Debt IRR | E116: =IF(F18,"ECA","Regular") -> Regular | H116: =IRR(114:114) -> 0.04187645455
A118: Alternative Methods of Computing Effective Credit Spread
B119: NPV of Credit Spread
C120: ECA Debt
D121: Total Spread and Premium Cash Paid | J121: =J75+J48 -> 0 | K121: 0 | L121: 0 | M121: 0 | N121: 0 | O121: 0 | P121: 0 | Q121: 0 | R121: 0 | S121: 0 | T121: 0 | U121: 0 | V121: 0 | W121: 0 | X121: 0 | Y121: 0 | Z121: 0 | AA121: 0 | AB121: 0 | AC121: 0 | AD121: 0 | AE121: 0 | AF121: 0 | AG121: 0 | AH121: 0 | AI121: 0 | AJ121: 0 | AK121: 0 | AL121: 0 | AM121: 0 | AN121: 0
D122: Closing Balance of Debt | J122: =J70 -> 0 | K122: =K70 -> 0 | L122: 0 | M122: 0 | N122: 0 | O122: 0 | P122: 0 | Q122: 0 | R122: 0 | S122: 0 | T122: 0 | U122: 0 | V122: 0 | W122: 0 | X122: 0 | Y122: 0 | Z122: 0 | AA122: 0 | AB122: 0 | AC122: 0 | AD122: 0 | AE122: 0 | AF122: 0 | AG122: 0 | AH122: 0 | AI122: 0 | AJ122: 0 | AK122: 0 | AL122: 0 | AM122: 0 | AN122: 0
D123: LIBOR | J123: =J79 -> 0.015 | K123: =K79 -> 0.0165 | L123: 0.0165 | M123: 0.0165 | N123: 0.0165 | O123: 0.02 | P123: 0.02 | Q123: 0.02 | R123: 0.02 | S123: 0.02 | T123: 0.025 | U123: 0.025 | V123: 0.025 | W123: 0.025 | X123: 0.025 | Y123: 0.028 | Z123: 0.028 | AA123: 0.028 | AB123: 0.028 | AC123: 0.028 | AD123: 0.028 | AE123: 0.028 | AF123: 0.028 | AG123: 0.028 | AH123: 0.028 | AI123: 0.028 | AJ123: 0.028 | AK123: 0.028 | AL123: 0.028 | AM123: 0.028 | AN123: 0.028
D124: Compounded | I124: 1 | J124: =I124*(1+J123) -> 1.015 | K124: =J124*(1+K123) -> 1.0317475 | L124: 1.048771334 | M124: 1.066076061 | N124: 1.083666316 | O124: 1.105339642 | P124: 1.127446435 | Q124: 1.149995364 | R124: 1.172995271 | S124: 1.196455176 | T124: 1.226366556 | U124: 1.25702572 | V124: 1.288451363 | W124: 1.320662647 | X124: 1.353679213 | Y124: 1.391582231 | Z124: 1.430546533 | AA124: 1.470601836 | AB124: 1.511778688 | AC124: 1.554108491 | AD124: 1.597623529 | AE124: 1.642356987 | AF124: 1.688342983 | AG124: 1.735616587 | AH124: 1.784213851 | AI124: 1.834171839 | AJ124: 1.88552865 | AK124: 1.938323453 | AL124: 1.992596509 | AM124: 2.048389211 | AN124: 2.105744109
D125: NPV of Credit Spread | H125: =SUM(J125:AN125) -> 0 | J125: =J121/J124 -> 0 | K125: =K121/K124 -> 0 | L125: 0 | M125: 0 | N125: 0 | O125: 0 | P125: 0 | Q125: 0 | R125: 0 | S125: 0 | T125: 0 | U125: 0 | V125: 0 | W125: 0 | X125: 0 | Y125: 0 | Z125: 0 | AA125: 0 | AB125: 0 | AC125: 0 | AD125: 0 | AE125: 0 | AF125: 0 | AG125: 0 | AH125: 0 | AI125: 0 | AJ125: 0 | AK125: 0 | AL125: 0 | AM125: 0 | AN125: 0
C127: Conventional Debt
D128: Total Spread and Premium Cash Paid | J128: =J95 -> 0 | K128: =K95 -> 15.137969 | L128: 14.61964442 | M128: 14.08155837 | N128: 13.52295743 | O128: 12.94305945 | P128: 12.35768762 | Q128: 11.7479493 | R128: 11.11283021 | S128: 10.45127386 | T128: 9.762179787 | U128: 9.062825744 | V128: 8.330863851 | W128: 7.564773744 | X128: 6.762964172 | Y128: 5.923769692 | Z128: 5.052051382 | AA128: 4.137073468 | AB128: 3.176689161 | AC128: 2.16864514 | AD128: 1.110576258 | AE128: 0 | AF128: 0 | AG128: 0 | AH128: 0 | AI128: 0 | AJ128: 0 | AK128: 0 | AL128: 0 | AM128: 0 | AN128: 0
D129: Closing Balance of Debt | J129: =J90 -> 700 | K129: =K90 -> 676.0319759 | L129: 651.1501549 | M129: 625.3196978 | N129: 598.5044372 | O129: 571.4360583 | P129: 543.24094 | Q129: 513.872181 | R129: 483.2809277 | S129: 451.4162931 | T129: 419.0772237 | U129: 385.2303235 | V129: 349.805289 | W129: 312.7285384 | X129: 273.9230596 | Y129: 233.6136352 | Z129: 191.3038286 | AA129: 146.8943696 | AB129: 100.2810613 | AC129: 51.35453645 | AD129: 0 | AE129: 0 | AF129: 0 | AG129: 0 | AH129: 0 | AI129: 0 | AJ129: 0 | AK129: 0 | AL129: 0 | AM129: 0 | AN129: 0
D130: LIBOR | J130: =J123 -> 0.015 | K130: =K123 -> 0.0165 | L130: 0.0165 | M130: 0.0165 | N130: 0.0165 | O130: 0.02 | P130: 0.02 | Q130: 0.02 | R130: 0.02 | S130: 0.02 | T130: 0.025 | U130: 0.025 | V130: 0.025 | W130: 0.025 | X130: 0.025 | Y130: 0.028 | Z130: 0.028 | AA130: 0.028 | AB130: 0.028 | AC130: 0.028 | AD130: 0.028 | AE130: 0.028 | AF130: 0.028 | AG130: 0.028 | AH130: 0.028 | AI130: 0.028 | AJ130: 0.028 | AK130: 0.028 | AL130: 0.028 | AM130: 0.028 | AN130: 0.028
D131: Compounded | I131: 1 | J131: =I131*(1+J130) -> 1.015 | K131: =J131*(1+K130) -> 1.0317475 | L131: 1.048771334 | M131: 1.066076061 | N131: 1.083666316 | O131: 1.105339642 | P131: 1.127446435 | Q131: 1.149995364 | R131: 1.172995271 | S131: 1.196455176 | T131: 1.226366556 | U131: 1.25702572 | V131: 1.288451363 | W131: 1.320662647 | X131: 1.353679213 | Y131: 1.391582231 | Z131: 1.430546533 | AA131: 1.470601836 | AB131: 1.511778688 | AC131: 1.554108491 | AD131: 1.597623529 | AE131: 1.642356987 | AF131: 1.688342983 | AG131: 1.735616587 | AH131: 1.784213851 | AI131: 1.834171839 | AJ131: 1.88552865 | AK131: 1.938323453 | AL131: 1.992596509 | AM131: 2.048389211 | AN131: 2.105744109
D132: NPV of Credit Spread | H132: =SUM(J132:AN132) -> 152.5479484 | J132: =J128/J131 -> 0 | K132: =K128/K131 -> 14.67216446 | L132: 13.93978263 | M132: 13.20877458 | N132: 12.47889432 | O132: 11.70957682 | P132: 10.96077582 | Q132: 10.21564927 | R132: 9.473891741 | S132: 8.735198834 | T132: 7.960246259 | U132: 7.209737719 | V132: 6.465796143 | W132: 5.728013708 | X132: 4.995987312 | Y132: 4.25685925 | Z132: 3.531553336 | AA132: 2.81318394 | AB132: 2.101292462 | AC132: 1.395427123 | AD132: 0.6951426532 | AE132: 0 | AF132: 0 | AG132: 0 | AH132: 0 | AI132: 0 | AJ132: 0 | AK132: 0 | AL132: 0 | AM132: 0 | AN132: 0
C134: LIBOR Cash Flow
D135: LIBOR Interest Payment | J135: =J94+J74 -> 0 | K135: 11.55 | L135: 11.1545276 | M135: 10.74397756 | N135: 10.31777501 | O135: 11.97008874 | P135: 11.42872117 | Q135: 10.8648188 | R135: 10.27744362 | S135: 9.665618555 | T135: 11.28540733 | U135: 10.47693059 | V135: 9.630758088 | W135: 8.745132224 | X135: 7.818213461 | Y135: 7.669845668 | Z135: 6.541181785 | AA135: 5.356507201 | AB135: 4.113042348 | AC135: 2.807869717 | AD135: 1.437927021 | AE135: 0 | AF135: 0 | AG135: 0 | AH135: 0 | AI135: 0 | AJ135: 0 | AK135: 0 | AL135: 0 | AM135: 0 | AN135: 0
D136: Debt Repayment | J136: =J101+J102 -> 0 | K136: 23.96802406 | L136: 24.88182103 | M136: 25.83045713 | N136: 26.81526061 | O136: 27.06837889 | P136: 28.1951183 | Q136: 29.36875899 | R136: 30.59125326 | S136: 31.86463467 | T136: 32.33906939 | U136: 33.84690016 | V136: 35.42503456 | W136: 37.07675053 | X136: 38.80547887 | Y136: 40.30942437 | Z136: 42.30980657 | AA136: 44.40945906 | AB136: 46.61330822 | AC136: 48.92652488 | AD136: 51.35453645 | AE136: 0 | AF136: 0 | AG136: 0 | AH136: 0 | AI136: 0 | AJ136: 0 | AK136: 0 | AL136: 0 | AM136: 0 | AN136: 0
D137: Cash Outflow | J137: =J52+J53 -> 700
D138: LIBOR Cash Flow | J138: =J135+J136-J137 -> -700 | K138: =K135+K136-K137 -> 35.51802406 | L138: 36.03634864 | M138: 36.57443469 | N138: 37.13303563 | O138: 39.03846763 | P138: 39.62383946 | Q138: 40.23357779 | R138: 40.86869688 | S138: 41.53025322 | T138: 43.62447671 | U138: 44.32383076 | V138: 45.05579265 | W138: 45.82188276 | X138: 46.62369233 | Y138: 47.97927004 | Z138: 48.85098835 | AA138: 49.76596627 | AB138: 50.72635057 | AC138: 51.73439459 | AD138: 52.79246347 | AE138: 0 | AF138: 0 | AG138: 0 | AH138: 0 | AI138: 0 | AJ138: 0 | AK138: 0 | AL138: 0 | AM138: 0 | AN138: 0
D140: LIBOR IRR | H140: =IRR(138:138) -> 0.02061736569
D141: Debt IRR | H141: =H116 -> 0.04187645455
D142: Method 1 Spread IRR | H142: =H141-H140 -> 0.02125908886
C144: Credit Spread and Fee Cash Flow
D145: Credit Spread and Fee Payment | J145: =J75+J48+J95 -> 0 | K145: 15.137969 | L145: 14.61964442 | M145: 14.08155837 | N145: 13.52295743 | O145: 12.94305945 | P145: 12.35768762 | Q145: 11.7479493 | R145: 11.11283021 | S145: 10.45127386 | T145: 9.762179787 | U145: 9.062825744 | V145: 8.330863851 | W145: 7.564773744 | X145: 6.762964172 | Y145: 5.923769692 | Z145: 5.052051382 | AA145: 4.137073468 | AB145: 3.176689161 | AC145: 2.16864514 | AD145: 1.110576258 | AE145: 0 | AF145: 0 | AG145: 0 | AH145: 0 | AI145: 0 | AJ145: 0 | AK145: 0 | AL145: 0 | AM145: 0 | AN145: 0
D146: Debt Repayment | J146: =J136 -> 0 | K146: =K136 -> 23.96802406 | L146: 24.88182103 | M146: 25.83045713 | N146: 26.81526061 | O146: 27.06837889 | P146: 28.1951183 | Q146: 29.36875899 | R146: 30.59125326 | S146: 31.86463467 | T146: 32.33906939 | U146: 33.84690016 | V146: 35.42503456 | W146: 37.07675053 | X146: 38.80547887 | Y146: 40.30942437 | Z146: 42.30980657 | AA146: 44.40945906 | AB146: 46.61330822 | AC146: 48.92652488 | AD146: 51.35453645 | AE146: 0 | AF146: 0 | AG146: 0 | AH146: 0 | AI146: 0 | AJ146: 0 | AK146: 0 | AL146: 0 | AM146: 0 | AN146: 0
D147: Cash Outflow | J147: =J137 -> 700
D148: Credit Spread and Fee Cash Flow | J148: =J145+J146-J147 -> -700 | K148: =K145+K146-K147 -> 39.10599306 | L148: 39.50146545 | M148: 39.9120155 | N148: 40.33821804 | O148: 40.01143834 | P148: 40.55280592 | Q148: 41.11670829 | R148: 41.70408346 | S148: 42.31590853 | T148: 42.10124917 | U148: 42.90972591 | V148: 43.75589841 | W148: 44.64152428 | X148: 45.56844304 | Y148: 46.23319407 | Z148: 47.36185795 | AA148: 48.54653253 | AB148: 49.78999739 | AC148: 51.09517002 | AD148: 52.46511271 | AE148: 0 | AF148: 0 | AG148: 0 | AH148: 0 | AI148: 0 | AJ148: 0 | AK148: 0 | AL148: 0 | AM148: 0 | AN148: 0
D150: Method 2 Spread IRR | H150: =IRR(148:148) -> 0.02162566999
A152: Data Table
J153: ECA | K153: Regular
J154: TRUE | K154: FALSE
D155: Credit Spread IRR 1 - Debt IRR less LIBOR IRR | I155: =H142 -> 0.02125908886 | J155: 0.02136380076 | K155: 0.02125908886
D156: Credit Spread IRR 2 - Debt Balance x CS + Fees | I156: =H150 -> 0.02162566999 | J156: 0.02012155483 | K156: 0.02162566999
D157: PV of Credit Spread | I157: =H125+H132 -> 152.5479484 | J157: 152.7589131 | K157: 152.5479484
D158: Debt IRR | I158: =H116 -> 0.04187645455 | J158: 0.04189548116 | K158: 0.04187645455
D159: Equity IRR | I159: =H106 -> 0.08173723518 | J159: 0.08173651582 | K159: 0.08173723518

Sheet Sheet2
